bitfinex-derivatives/quotes_ETHF0:USTF0_20230702
["timestamp","ask_amount","ask_price","bid_price","bid_amount"]
[1688314754734,0.00270394,1922.7,1922.6,8.60580635]
[1688314754934,3.2078,1923.0,1922.7,5.0]
[1688314755141,3.51982,1923.0,1922.9,0.31204]
[1688314755340,3.72352378,1923.0,1922.9,0.31204]
[1688314755537,3.41150378,1923.0,1922.9,5.31204]
[1688314755957,3.21052443,1923.0,1922.9,5.31204]
[1688314756244,3.41422821,1923.0,1922.9,5.31204]
[1688314756437,4.12704494,1923.0,1922.9,0.31204]
[1688314756638,12.13404494,1923.0,1922.6,1.04021]
[1688314756839,3.51987,1922.7,1922.6,6.04021]
[1688314757038,3.72357378,1922.7,1922.6,1.32692635]
[1688314757241,4.12437555,1922.7,1922.6,1.04021]
[1688314757939,4.12709032,1922.7,1922.6,1.04021]
[1688314758239,4.12709032,1922.7,1922.6,1.32692635]
[1688314758433,0.40351654,1922.7,1922.6,1.32692635]
[1688314758640,0.40351654,1922.7,1922.6,9.30692635]
[1688314758941,0.40351654,1922.7,1922.6,14.30692635]
[1688314760549,0.40351654,1922.7,1922.6,22.25392635]
[1688314761044,3.51984,1922.9,1922.6,22.25392635]
[1688314761343,0.51576378,1922.8,1922.6,14.30692635]
[1688314761544,0.91659456,1922.8,1922.6,14.30692635]
[1688314761739,0.91659456,1922.8,1922.6,14.02021]
[1688314761939,0.00271477,1922.7,1922.6,14.02021]
[1688314762148,0.7156201,1922.7,1922.6,14.30692635]
[1688314762838,0.4035501,1922.7,1922.6,14.30692635]
[1688314763044,0.7156201,1922.7,1922.6,14.30692635]
[1688314763553,0.4035501,1922.7,1922.6,14.30692635]
[1688314765037,0.7156201,1922.7,1922.6,14.30692635]
[1688314765239,3.52258477,1922.7,1922.6,14.30692635]
[1688314765440,0.9193457,1922.7,1922.6,1.04021]
[1688314765647,11.83333517,1922.7,1922.5,0.31209]
[1688314765841,11.83333517,1922.7,1922.4,0.93628]
[1688314766045,11.2148,1922.5,1922.1,0.78036]
[1688314766244,3.2078,1922.2,1922.1,0.78036]
[1688314766452,3.51995,1922.2,1922.1,1.4820244]
[1688314766751,3.60736541,1922.2,1922.1,1.4820244]
[1688314767051,3.61003699,1922.2,1922.1,1.4820244]
[1688314767653,3.81374077,1922.2,1922.1,1.4820244]
[1688314767849,3.61003699,1922.2,1922.1,1.06707635]
[1688314768355,0.09008699,1922.2,1922.1,9.04707635]
[1688314768650,0.19760558,1922.2,1922.1,9.04707635]
[1688314769051,0.50975558,1922.2,1922.1,9.04707635]
[1688314769250,0.71345936,1922.2,1922.0,0.72952555]
[1688314769552,3.2078,1922.1,1921.9,0.3122]
[1688314769748,1.0833679,1922.0,1921.9,0.73269087]
[1688314770047,1.08603898,1922.0,1921.9,0.3122]
[1688314771252,1.0833679,1922.0,1921.9,0.3122]
[1688314771455,1.0833679,1922.0,1921.8,1.36780107]
[1688314771749,3.52,1921.9,1921.8,0.94435457]
[1688314771954,3.52,1921.9,1921.8,1.23107092]
[1688314772652,3.72370378,1921.9,1921.8,1.23107092]
[1688314773350,3.52,1921.9,1921.8,1.23107092]
[1688314773555,3.72370378,1921.9,1921.8,1.23107092]
[1688314773856,3.52,1921.9,1921.8,9.15907092]
[1688314774254,0.78826478,1922.1,1921.8,9.15907092]
[1688314774746,0.3819843,1922.0,1921.8,9.15907092]
[1688314775550,0.0698043,1922.0,1921.8,9.15907092]
[1688314775752,0.0698043,1922.0,1921.8,14.15907092]
[1688314776051,0.0698043,1922.0,1921.9,8.3192]
[1688314776353,0.10027621,1922.0,1921.9,8.3192]
[1688314776557,0.12810467,1922.0,1921.9,8.3192]
[1688314777154,0.13075212,1922.0,1921.9,8.3192]
[1688314778051,0.12810467,1922.0,1921.9,8.3192]
[1688314779446,0.17228455,1922.0,1921.9,8.3192]
[1688314779649,17.98519,1922.5,1922.2,5.0]
[1688314779650,0.31213,1922.3,1922.2,5.0]
[1688314779857,0.31213,1922.3,1922.2,13.28013]
[1688314780254,0.31213,1922.3,1922.2,13.56684635]
[1688314780951,3.10667244,1922.7,1922.5,5.0]
[1688314781156,3.10667244,1922.7,1922.6,8.55879635]
[1688314781352,3.31037622,1922.7,1922.6,8.55879635]
[1688314781758,3.31037622,1922.7,1922.6,8.27208]
[1688314781946,3.31037622,1922.7,1922.6,8.55879635]
[1688314782446,3.10667244,1922.7,1922.6,8.55879635]
[1688314782848,3.31037622,1922.7,1922.6,0.31208]
[1688314783660,3.10667244,1922.7,1922.6,8.56679635]
[1688314784356,3.31037622,1922.7,1922.6,8.56679635]
[1688314784960,3.10667244,1922.7,1922.6,8.56679635]
[1688314785657,3.31037622,1922.7,1922.6,0.31208]
[1688314786863,6.67982132,1922.7,1922.3,0.93626]
[1688314787158,3.51991,1922.4,1922.3,0.93626]
[1688314787458,3.78023097,1922.4,1922.3,1.22297635]
[1688314787657,3.78023097,1922.4,1922.3,0.93626]
[1688314787963,3.46812097,1922.4,1922.3,8.94326]
[1688314788146,3.46812097,1922.4,1922.3,9.22997635]
[1688314789558,3.78023097,1922.4,1922.3,9.22997635]
[1688314789961,4.55141887,1922.4,1922.2,0.31213]
[1688314790154,4.2910979,1922.4,1922.2,0.31213]
[1688314790463,4.2910979,1922.4,1922.1,0.73414485]
[1688314790649,3.2078,1922.2,1922.1,0.73414485]
[1688314790855,4.2911379,1922.2,1922.1,0.73414485]
[1688314791161,4.2911379,1922.2,1922.1,0.31216]
[1688314792058,4.2911379,1922.2,1921.8,0.00780457]
[1688314792059,29.984583,1922.2,1921.8,0.00780457]
[1688314792367,0.31221,1921.8,1921.3,0.78072]
[1688314792661,0.31228,1921.4,1921.3,0.78072]
[1688314792850,0.31228,1921.4,1921.3,1.06743635]
[1688314793359,0.51598378,1921.4,1921.3,1.06743635]
[1688314793655,0.31228,1921.4,1921.3,1.06743635]
[1688314794458,0.32006701,1921.5,1921.3,6.06743635]
[1688314794650,4.24862,1921.7,1921.3,13.99543635]
[1688314794960,4.24862,1921.7,1921.6,0.31224]
[1688314795159,4.24862,1921.7,1921.6,0.59895635]
[1688314795958,4.45232378,1921.7,1921.6,0.59895635]
[1688314796457,4.45232378,1921.7,1921.6,0.31224]
[1688314796853,0.00780579,1921.8,1921.6,8.57895635]
[1688314797057,0.32001579,1921.8,1921.6,8.57895635]
[1688314797754,0.00780579,1921.8,1921.6,8.57895635]
[1688314798152,3.2078,1921.7,1921.6,0.31224]
[1688314798354,3.52003,1921.7,1921.4,0.93674]
[1688314798561,3.52003,1921.7,1921.6,0.21168581]
[1688314798766,4.08751412,1921.7,1921.5,0.21168494]
[1688314799057,4.08751412,1921.7,1921.4,0.93674]
[1688314799265,0.20370378,1921.6,1921.4,0.93674]
[1688314799564,0.31226,1921.5,1921.4,1.22345635]
[1688314800557,0.31226,1921.5,1921.4,0.93674]
[1688314800760,3.52006,1921.5,1921.4,1.22345635]
[1688314800958,3.52006,1921.5,1921.4,0.93674]
[1688314801357,3.52006,1921.5,1921.4,1.22345635]
[1688314802069,0.00780579,1921.8,1921.4,1.22345635]
[1688314802070,0.00780579,1921.8,1921.6,0.78054357]
[1688314802361,0.00780579,1921.8,1921.7,0.59894635]
[1688314802565,0.00780579,1921.8,1921.7,0.31223]
[1688314802566,0.52372957,1921.8,1921.7,0.31223]
[1688314802758,0.52372957,1921.8,1921.6,1.09278357]
[1688314802759,3.73152957,1921.8,1921.6,1.09278357]
[1688314802956,3.73152957,1921.8,1921.6,0.78054357]
[1688314803274,0.87971412,1921.7,1921.6,1.09278357]
[1688314803654,0.87971412,1921.7,1921.6,0.78054357]
[1688314805360,0.87971412,1921.7,1921.6,1.09278357]
[1688314805962,0.87971412,1921.7,1921.6,1.85083817]
[1688314806166,0.31223,1921.7,1921.6,1.85083817]
[1688314807065,0.31223,1921.7,1921.6,1.25188182]
[1688314808160,0.31223,1921.7,1921.6,1.85083817]
[1688314809968,3.99618579,1921.8,1921.6,7.15773817]
[1688314810165,0.00780579,1921.8,1921.7,7.96]
[1688314810467,0.32002579,1921.8,1921.7,8.70642768]
[1688314819365,0.00780579,1921.8,1921.7,8.70642768]
[1688314819767,0.32001579,1921.8,1921.7,5.84042768]
[1688314822671,0.32001579,1921.8,1921.7,0.74642768]
[1688314822971,0.52371957,1921.8,1921.7,0.74642768]
[1688314824064,3.73151957,1921.8,1921.7,0.74642768]
[1688314824267,3.73151957,1921.8,1921.7,0.43419768]
[1688314824470,3.73151957,1921.8,1921.7,0.74642768]
[1688314825782,8.81051957,1921.8,1921.7,0.43419768]
[1688314826377,8.81051957,1921.8,1921.7,0.43414592]
[1688314826774,8.81051957,1921.8,1921.6,5.3069]
[1688314826975,5.079,1921.7,1921.2,5.88246701]
[1688314827171,3.52007,1921.4,1921.3,0.31228]
[1688314827370,3.72377378,1921.4,1921.3,0.31228]
[1688314827573,3.72377378,1921.4,1921.2,10.78306701]
[1688314827574,4.2912579,1921.4,1921.2,11.19012885]
[1688314827980,4.2912579,1921.4,1921.2,11.4768452]
[1688314828282,4.2912579,1921.4,1921.2,11.19012885]
[1688314828468,0.87975412,1921.4,1921.3,0.28671635]
[1688314828781,0.31227,1921.4,1921.3,0.59898635]
[1688314829479,0.51597378,1921.4,1921.3,0.59898635]
[1688314829674,0.51597378,1921.4,1921.3,0.31227]
[1688314829873,0.51597378,1921.4,1921.2,11.19012885]
[1688314830075,3.72377378,1921.4,1921.2,11.19012885]
[1688314830576,3.72377378,1921.4,1921.2,11.4768452]
[1688314831274,3.72377378,1921.4,1921.2,11.19012885]
[1688314831881,0.31227,1921.4,1921.2,11.4768452]
[1688314832081,0.56748412,1921.5,1921.3,5.1]
[1688314832279,3.52003,1921.6,1921.4,5.69897635]
[1688314832474,0.31223,1921.6,1921.4,5.69897635]
[1688314832673,0.51593378,1921.6,1921.4,0.59897635]
[1688314833677,0.51593378,1921.6,1921.4,0.31226]
[1688314834475,3.2078,1921.5,1921.4,0.31226]
[1688314834676,3.52004,1921.5,1921.4,0.31226]
[1688314835385,9.18752412,1921.5,1921.3,0.78065]
[1688314835680,0.20370378,1921.4,1921.2,7.45272876]
[1688314835883,4.08755412,1921.3,1921.2,7.45272876]
[1688314836087,4.08755412,1921.3,1921.2,5.31546885]
[1688314836088,9.14655412,1921.3,1921.2,5.31546885]
[1688314836377,9.14655412,1921.3,1921.2,0.00780701]
[1688314836792,9.14655412,1921.3,1921.2,0.32009701]
[1688314837885,9.14655412,1921.3,1921.2,0.00780701]
[1688314838781,9.18755412,1921.3,1921.2,0.00780701]
[1688314839288,4.09129564,1921.3,1921.2,0.32009701]
[1688314840791,4.09129564,1921.3,1921.2,0.00780701]
[1688314841287,9.17029564,1921.3,1921.2,0.00780701]
[1688314844790,14.25629564,1921.3,1921.2,0.00780701]
[1688314846380,9.17729564,1921.3,1921.2,0.00780701]
[1688314846584,9.17729564,1921.3,1921.2,0.25754798]
[1688314846788,9.5975614,1921.3,1921.2,0.25754798]
[1688314847392,9.5975614,1921.3,1921.0,0.40764405]
[1688314847589,8.3078,1921.1,1921.0,0.40764405]
[1688314847895,9.18759412,1921.1,1920.8,5.87575]
[1688314848083,8.2668,1920.9,1920.8,5.0949]
[1688314848285,9.14662412,1920.9,1920.7,0.31238]
[1688314848488,5.079,1920.8,1920.7,0.31238]
[1688314848697,0.31236,1920.8,1920.7,0.59909635]
[1688314849186,0.31609539,1920.8,1920.7,0.59909635]
[1688314849989,0.51979917,1920.8,1920.7,0.31238]
[1688314851093,5.61979917,1920.8,1920.6,0.00780925]
[1688314851290,8.87528412,1920.7,1920.6,0.00780925]
[1688314851491,9.18766412,1920.7,1920.6,0.00780925]
[1688314851691,9.18766412,1920.7,1920.6,0.32019925]
[1688314852195,9.19140169,1920.7,1920.6,0.32019925]
[1688314852797,4.09140169,1920.7,1920.6,0.32019925]
[1688314853594,9.19140169,1920.7,1920.6,0.00780925]
[1688314853802,0.104,1920.5,1920.2,1.66905991]
[1688314854096,0.31244,1920.3,1920.2,0.31245]
[1688314854500,3.72394378,1920.3,1920.2,0.31245]
[1688314855093,3.72766319,1920.3,1920.2,0.81408525]
[1688314855908,3.72766319,1920.3,1920.2,0.50163525]
[1688314856508,8.82766319,1920.3,1920.2,0.50163525]
[1688314856711,8.82766319,1920.3,1920.2,0.92559077]
[1688314859011,8.82766319,1920.3,1920.2,1.23805077]
[1688314860005,0.5752956,1920.4,1920.2,1.52476712]
[1688314860205,0.93726,1920.7,1920.3,8.35274741]
[1688314860413,0.9371,1920.9,1920.6,5.1]
[1688314860612,0.20370378,1920.8,1920.7,0.61799368]
[1688314860807,0.51606378,1920.8,1920.7,0.61799368]
[1688314861010,0.3157897,1920.8,1920.7,0.90471003]
[1688314861212,4.71238412,1920.9,1920.7,0.90471003]
[1688314861213,0.00780945,1920.9,1920.7,5.95571003]
[1688314861515,3.94035576,1921.3,1920.7,5.95571003]
[1688314861516,3.94035576,1921.3,1920.9,0.31235]
[1688314861709,3.52009,1921.3,1921.1,0.31231]
[1688314862010,0.51600378,1921.2,1921.1,0.31231]
[1688314862212,0.51933109,1921.2,1921.1,0.31231]
[1688314864020,5.61933109,1921.2,1921.0,4.9909]
[1688314864317,5.66748412,1921.1,1921.0,5.30323]
[1688314864617,9.18760412,1921.1,1921.0,5.30323]
[1688314865009,9.19090083,1921.1,1921.0,5.30323]
[1688314867019,8.62341671,1921.1,1921.0,5.58994635]
[1688314867320,8.82712049,1921.1,1921.0,5.30323]
[1688314867911,8.82712049,1921.1,1920.9,0.78085]
[1688314867912,8.93112049,1921.1,1920.8,0.78087]
[1688314868113,0.31236,1920.8,1920.7,5.11647]
[1688314868311,5.61606378,1920.8,1920.7,5.11647]
[1688314868616,6.1835479,1920.8,1920.7,5.40318635]
[1688314869116,5.98312947,1920.8,1920.7,5.40318635]
[1688314869321,1.08683325,1920.8,1920.7,5.40318635]
[1688314869520,0.88312947,1920.8,1920.7,5.40318635]
[1688314869719,0.88312947,1920.8,1920.7,5.11647]
[1688314869919,1.08683325,1920.8,1920.7,5.11647]
[1688314870217,0.88312947,1920.8,1920.7,5.40318635]
[1688314870619,1.08683325,1920.8,1920.7,5.40318635]
[1688314871124,1.08683325,1920.8,1920.7,5.11647]
[1688314871624,6.18683325,1920.8,1920.7,5.11647]
[1688314874022,6.18683325,1920.8,1920.7,4.8041]
[1688314874624,6.18683325,1920.8,1920.7,5.11648]
[1688314876836,6.18683325,1920.8,1920.7,5.29902168]
[1688314877521,6.29083325,1920.8,1920.7,0.18254168]
[1688314877727,6.29083325,1920.8,1920.4,1.20711749]
[1688314877933,8.2868,1920.7,1920.5,0.31242]
[1688314878135,0.51610378,1920.6,1920.5,0.31242]
[1688314878428,1.0835879,1920.6,1920.5,0.31242]
[1688314879027,1.08685941,1920.6,1920.5,0.31242]
[1688314880028,0.78092,1920.9,1920.5,5.69913635]
[1688314880232,0.78092,1920.9,1920.8,5.099]
[1688314880426,3.2078,1921.2,1920.8,5.74303376]
[1688314880631,3.52012,1921.2,1921.0,5.094]
[1688314880832,3.52012,1921.2,1921.1,0.31232]
[1688314881024,3.72382378,1921.2,1921.1,0.35726741]
[1688314881225,3.72382378,1921.2,1921.1,0.64398376]
[1688314881529,3.52012,1921.2,1921.1,0.64398376]
[1688314881730,0.31232,1921.2,1921.1,0.64398376]
[1688314881926,0.00780782,1921.3,1921.1,5.69903635]
[1688314882126,0.00780782,1921.3,1921.2,5.4123]
[1688314882328,0.00780782,1921.3,1921.2,5.45724741]
[1688314882527,3.2078,1921.6,1921.2,5.45724741]
[1688314882728,0.31226,1921.5,1921.4,5.41226]
[1688314883123,0.31226,1921.5,1921.4,0.31226]
[1688314885337,0.42400665,1921.5,1921.4,5.69897635]
[1688314885542,0.42400665,1921.5,1921.4,5.41226]
[1688314887040,0.42400665,1921.5,1921.4,0.31226]
[1688314888136,0.42708302,1921.5,1921.4,0.31226]
[1688314889043,5.52708302,1921.5,1921.4,0.31226]
[1688314891134,5.52708302,1921.5,1921.3,0.0078066]
[1688314891339,4.2912579,1921.4,1921.3,0.3200966]
[1688314891647,4.38209815,1921.4,1921.3,0.3200966]
[1688314892146,4.38517669,1921.4,1921.3,0.3200966]
[1688314892642,3.61398879,1921.4,1921.3,0.60681295]
[1688314893042,3.61398879,1921.4,1921.3,0.3200966]
[1688314893345,0.60989257,1921.4,1921.3,0.60681295]
[1688314895642,0.60989257,1921.4,1921.3,0.3200966]
[1688314895840,3.81769257,1921.4,1921.3,0.3200966]
[1688314901349,3.81769257,1921.4,1921.3,0.60681295]
[1688314901647,3.81769257,1921.4,1921.3,0.3200966]
[1688314903144,8.91769257,1921.4,1921.3,0.0078066]
[1688314903341,12.31975805,1921.4,1921.3,0.0078066]
[1688314904745,10.49975805,1921.4,1921.3,0.0078066]
[1688314905460,7.09769257,1921.4,1921.3,0.0078066]
[1688314905646,10.37769257,1921.4,1921.3,0.0078066]
[1688314906046,10.28685232,1921.4,1921.3,0.0078066]
[1688314906651,10.28685232,1921.4,1921.3,0.09726117]
[1688314912561,10.28685232,1921.4,1921.3,0.40955117]
[1688314912758,7.00685232,1921.4,1921.3,0.69626752]
[1688314913360,10.20711287,1921.4,1921.3,0.69626752]
[1688314914256,10.41081665,1921.4,1921.3,0.69626752]
[1688314915566,7.00685232,1921.4,1921.3,0.40955117]
[1688314915866,10.4112428,1921.4,1921.3,0.40955117]
[1688314916165,7.00685232,1921.4,1921.3,0.40955117]
[1688314916563,10.28685232,1921.4,1921.3,0.09726117]
[1688314916761,14.37471532,1921.4,1921.3,0.0078066]
[1688314916963,14.37471532,1921.4,1921.3,0.09722973]
[1688314916964,10.28685232,1921.4,1921.3,0.09722973]
[1688314917266,14.37471532,1921.4,1921.3,0.0078066]
[1688314919357,0.56748412,1921.3,1921.0,5.2062]
[1688314919569,10.205533,1921.1,1921.0,5.2062]
[1688314919962,10.77310241,1921.1,1921.0,5.2062]
[1688314920167,10.77625724,1921.1,1921.0,5.2062]
[1688314920365,10.77625724,1921.1,1921.0,5.80525635]
[1688314920559,10.20877312,1921.1,1921.0,5.80525635]
[1688314920753,10.20877312,1921.1,1921.0,5.91694861]
[1688314921361,10.4124769,1921.1,1921.0,5.63023226]
[1688314924963,10.20877312,1921.1,1921.0,5.91694861]
[1688314925155,10.4124769,1921.1,1921.0,5.63023226]
[1688314928578,7.00697861,1921.1,1921.0,5.63023226]
[1688314928885,10.4138497,1921.1,1921.0,5.63023226]
[1688314929081,10.21014592,1921.1,1921.0,5.91694861]
[1688314929580,10.4138497,1921.1,1921.0,5.91694861]
[1688314930882,10.4138497,1921.1,1921.0,5.63023226]
[1688314932486,10.21014592,1921.1,1921.0,5.91694861]
[1688314933278,10.4138497,1921.1,1921.0,5.91694861]
[1688314933789,10.21014592,1921.1,1921.0,5.91694861]
[1688314934687,10.4138497,1921.1,1921.0,5.91694861]
[1688314935979,0.00315483,1921.1,1921.0,9.18494861]
[1688314936283,6.68687109,1921.2,1921.1,0.35725741]
[1688314936284,3.28,1921.2,1921.1,0.35725741]
[1688314936687,6.92697109,1921.3,1921.1,3.75141229]
[1688314936875,6.92697109,1921.3,1921.2,0.59901635]
[1688314937286,6.92697109,1921.3,1921.2,0.71316925]
[1688314937982,7.13067487,1921.3,1921.2,0.71316925]
[1688314938185,7.13067487,1921.3,1921.2,0.4264529]
[1688314938875,6.92697109,1921.3,1921.2,0.71316925]
[1688314939674,7.13067487,1921.3,1921.2,0.71316925]
[1688314940485,6.92697109,1921.3,1921.2,0.71316925]
[1688314940688,6.61467109,1921.3,1921.2,3.99316925]
[1688314940881,3.40687109,1921.4,1921.2,3.87901635]
[1688314941079,3.40687109,1921.4,1921.3,0.35722741]
[1688314941282,3.5833,1921.3,1921.2,0.78072]
[1688314941592,6.7941,1921.3,1921.2,0.78072]
[1688314941782,7.36158412,1921.3,1921.2,0.78072]
[1688314942185,7.36158412,1921.3,1921.2,1.06743635]
[1688314942784,7.36158412,1921.3,1921.2,0.78072]
[1688314942982,7.36158412,1921.3,1921.2,1.06743635]
[1688314943186,7.36158412,1921.3,1921.2,0.78072]
[1688314943784,7.36158412,1921.3,1921.0,5.2062]
[1688314944093,9.89134791,1921.1,1921.0,5.51853]
[1688314944385,10.77114203,1921.1,1921.0,5.51853]
[1688314945186,10.77414868,1921.1,1921.0,5.51853]
[1688314946283,10.77414868,1921.1,1921.0,5.2062]
[1688314946284,7.36460077,1921.1,1921.0,5.2062]
[1688314946688,7.36460077,1921.1,1921.0,0.14541079]
[1688314947783,11.45109637,1921.1,1921.0,0.14541079]
[1688314947993,7.36460077,1921.1,1921.0,0.14541079]
[1688314948493,11.45109637,1921.1,1921.0,0.14541079]
[1688314949382,7.36460077,1921.1,1921.0,0.14541079]
[1688314952390,7.36460077,1921.1,1921.0,0.43212714]
[1688314952589,7.36460077,1921.1,1921.0,0.14541079]
[1688314954788,7.36460077,1921.1,1921.0,0.45774079]
[1688314955184,7.36460077,1921.1,1921.0,0.14541079]
[1688314956100,7.36460077,1921.1,1921.0,0.45774079]
[1688314958798,3.41351269,1921.1,1921.0,0.74445714]
[1688314958998,3.41351269,1921.1,1921.0,4.02445714]
[1688314959192,3.41351269,1921.1,1921.0,3.87904635]
[1688314959394,3.72582269,1921.1,1921.0,3.87904635]
[1688314970895,3.92952647,1921.1,1921.0,3.59233]
[1688314971109,7.00082043,1921.1,1921.0,0.31233]
[1688314972106,7.00082043,1921.1,1920.9,9.14575823]
[1688314972307,3.97893504,1921.0,1920.9,9.14575823]
[1688314972497,4.29126504,1921.0,1920.9,9.14575823]
[1688314972702,0.87981412,1921.0,1920.9,8.67724823]
[1688314972901,7.5653397,1921.0,1920.9,5.39724823]
[1688314973103,7.56834316,1921.0,1920.9,5.39724823]
[1688314973302,4.15681758,1921.0,1920.9,5.39724823]
[1688314973515,7.5683639,1921.0,1920.9,5.39724823]
[1688314974604,7.5683639,1921.0,1920.9,0.32014823]
[1688314974810,7.5683639,1921.0,1919.9,0.23447041]
[1688314974811,0.104,1920.6,1919.9,0.23447041]
[1688314975108,3.28,1920.1,1920.0,1.35980533]
[1688314975309,10.30146248,1920.1,1920.0,1.35980533]
[1688314975507,10.30146248,1920.1,1919.9,5.1401]
[1688314975508,7.5714579,1920.1,1919.9,5.1401]
[1688314976107,0.00288732,1920.0,1919.9,5.1401]
[1688314976310,0.31536732,1920.0,1919.9,5.1401]
[1688314978203,0.31536732,1920.0,1919.9,5.56134915]
[1688314979012,3.59536732,1920.0,1919.9,5.56134915]
[1688314981809,3.59536732,1920.0,1919.9,6.00041733]
[1688314982512,0.31536732,1920.0,1919.9,6.28713368]
[1688314982816,0.31536732,1920.0,1919.9,9.87962368]
[1688314983718,0.5190711,1920.0,1919.9,9.87962368]
[1688314984014,0.5190711,1920.0,1919.9,9.28041733]
[1688314984414,3.7900711,1920.0,1919.9,6.00041733]
[1688314988510,3.7900711,1920.0,1919.9,0.43906818]
[1688314988511,3.8940711,1920.0,1919.9,0.43906818]
[1688314988714,3.8940711,1920.0,1919.8,0.0078125]
[1688314988913,3.52029,1919.9,1919.8,0.0078125]
[1688314989117,3.52311992,1919.9,1919.8,0.0078125]
[1688314991719,6.80311992,1919.9,1919.8,0.0078125]
[1688314992222,6.80311992,1919.9,1919.8,0.42060944]
[1688314992522,6.80311992,1919.9,1919.8,0.0078125]
[1688314996623,6.80311992,1919.9,1919.8,0.44685723]
[1688315003730,6.80311992,1919.9,1919.8,0.73357358]
[1688315003923,6.80311992,1919.9,1919.8,1.04608358]
[1688315005020,7.0068237,1919.9,1919.8,0.75936723]
[1688315005215,7.0068237,1919.9,1919.8,0.44685723]
[1688315007227,7.0068237,1919.9,1919.8,0.59361662]
[1688315007928,7.0068237,1919.9,1919.8,0.88033297]
[1688315008230,7.0068237,1919.9,1919.8,0.59361662]
[1688315009132,7.1108237,1919.9,1919.8,0.59361662]
[1688315010228,6.80311992,1919.9,1919.8,0.88033297]
[1688315010428,7.0068237,1919.9,1919.6,0.41230108]
[1688315010633,6.4878,1919.7,1919.6,0.45724849]
[1688315010834,6.80032,1919.7,1919.6,0.12795997]
[1688315011231,3.52312862,1919.7,1919.6,0.44049997]
[1688315011738,3.52312862,1919.7,1919.6,0.88443085]
[1688315012739,3.52312862,1919.7,1919.6,0.48887829]
[1688315012740,7.08084497,1919.7,1919.6,0.48887829]
[1688315013043,7.08084497,1919.7,1919.6,0.57189085]
[1688315013235,6.79412862,1919.7,1919.6,0.88443085]
[1688315013635,7.08084497,1919.7,1919.6,0.88443085]
[1688315013839,6.79412862,1919.7,1919.6,0.52694344]
[1688315014033,6.79412862,1919.7,1919.6,0.83948344]
[1688315014939,0.31532862,1919.7,1919.6,0.83948344]
[1688315016240,0.31248,1920.1,1919.7,0.30622481]
[1688315016430,0.9452725,1920.2,1920.0,3.263]
[1688315016634,0.3202525,1920.2,1920.1,7.15544186]
[1688315016834,0.3202525,1920.2,1920.1,3.99258927]
[1688315017133,0.32301266,1920.2,1920.1,3.99258927]
[1688315018445,3.88972901,1920.2,1920.1,0.5846293]
[1688315018631,3.88972901,1920.2,1920.1,0.2721693]
[1688315018632,3.99372901,1920.2,1920.1,0.2721693]
[1688315018837,7.20152901,1920.2,1920.1,0.2721693]
[1688315019038,7.09752901,1920.2,1920.1,0.2721693]
[1688315019230,7.20152901,1920.2,1919.7,5.19203379]
[1688315019543,3.274,1920.0,1919.8,6.42744639]
[1688315019841,0.31249,1919.9,1919.8,6.82294895]
[1688315020041,0.31249,1919.9,1919.8,9.4272179]
[1688315020239,0.31523079,1919.9,1919.8,9.4272179]
[1688315020839,0.31523079,1919.9,1919.8,6.82294895]
[1688315021839,0.31523079,1919.9,1919.8,6.73993639]
[1688315022044,0.31523079,1919.9,1919.8,6.82294895]
[1688315022231,0.31523079,1919.9,1919.8,6.73993639]
[1688315022433,6.89271949,1919.9,1919.8,5.0722]
[1688315024656,6.89271949,1919.9,1919.8,5.38471]
[1688315026042,6.89271949,1919.9,1919.8,5.46772256]
[1688315026342,6.89271949,1919.9,1919.8,5.0722]
[1688315026845,6.32523537,1919.9,1919.8,5.73751094]
[1688315027352,0.00274079,1919.9,1919.8,10.37275733]
[1688315027653,0.00274079,1919.9,1919.8,13.58055733]
[1688315027845,0.00274079,1919.9,1919.8,16.16773428]
[1688315028040,1.27462537,1920.1,1919.9,0.04494741]
[1688315028241,1.27462537,1920.1,1920.0,3.66348256]
[1688315028441,1.27462537,1920.1,1920.0,3.93578045]
[1688315028748,0.78118,1920.1,1920.0,3.93578045]
[1688315029145,0.78381837,1920.1,1920.0,3.93578045]
[1688315030344,4.35053472,1920.1,1920.0,0.58476789]
[1688315032946,4.06381837,1920.1,1920.0,0.66778045]
[1688315033449,4.35053472,1920.1,1920.0,0.66778045]
[1688315033655,4.35053472,1920.1,1920.0,0.58476789]
[1688315033949,4.35053472,1920.1,1920.0,0.66778045]
[1688315034151,4.35053472,1920.1,1920.0,0.58476789]
[1688315035561,4.35053472,1920.1,1920.0,0.66778045]
[1688315035758,4.06381837,1920.1,1920.0,0.66778045]
[1688315037158,3.28263837,1920.1,1920.0,0.66778045]
[1688315037354,0.00263837,1920.1,1920.0,3.94778045]
[1688315037654,0.00263837,1920.1,1920.0,7.15558045]
[1688315040050,0.7889525,1920.2,1920.0,7.15558045]
[1688315040248,0.0078125,1920.2,1920.1,3.31294741]
[1688315040451,0.0078125,1920.2,1920.1,3.71563483]
[1688315041048,0.0078125,1920.2,1920.1,8.95963483]
[1688315041256,0.01045553,1920.2,1920.1,8.95963483]
[1688315042561,0.01045553,1920.2,1920.1,8.98536004]
[1688315045152,0.29717188,1920.2,1920.1,8.98536004]
[1688315045353,0.01045553,1920.2,1920.1,8.98536004]
[1688315064263,0.0078125,1920.2,1920.1,8.98536004]
[1688315070177,0.0078125,1920.2,1920.1,10.34060643]
[1688315070377,0.0078125,1920.2,1920.1,8.98536004]
[1688315070378,0.29452885,1920.2,1920.1,8.98536004]
[1688315070670,0.60696885,1920.2,1920.1,5.67241263]
[1688315075778,0.3202525,1920.2,1920.1,5.75542519]
[1688315075971,0.60696885,1920.2,1920.1,5.75542519]
[1688315076176,0.60696885,1920.2,1920.1,7.11067158]
[1688315076673,0.60696885,1920.2,1920.1,7.02765902]
[1688315077085,0.71096885,1920.2,1920.1,7.02765902]
[1688315077276,7.19876885,1920.2,1920.1,0.42841263]
[1688315077479,10.61125846,1920.2,1920.1,0.42841263]
[1688315080581,7.19876885,1920.2,1920.1,0.11595263]
[1688315084690,7.19876885,1920.2,1920.1,0.2636366]
[1688315089489,11.01782059,1920.2,1920.1,0.2636366]
[1688315090876,11.01782059,1920.2,1920.1,0.5760966]
[1688315091582,11.01782059,1920.2,1920.1,0.2636366]
[1688315093782,7.52330424,1920.2,1920.1,0.65910916]
[1688315093989,4.11295646,1920.2,1920.1,0.65910916]
[1688315094187,6.84028213,1920.2,1920.1,0.65910916]
[1688315094381,6.43157817,1920.2,1920.1,0.65910916]
[1688315094784,6.32757817,1920.2,1920.1,0.65910916]
[1688315095790,6.61429452,1920.2,1920.1,0.65910916]
[1688315095994,6.32757817,1920.2,1920.1,0.65910916]
[1688315096794,6.61429452,1920.2,1920.1,0.65910916]
[1688315097191,6.32757817,1920.2,1920.1,0.65910916]
[1688315098894,6.61429452,1920.2,1920.1,0.65910916]
[1688315100584,0.0078125,1920.2,1920.1,3.93910916]
[1688315100786,0.3202525,1920.2,1920.1,3.93910916]